bitfinex/quotes_BTCUSD_20240613
["timestamp","ask_amount","ask_price","bid_price","bid_amount"]
[1718262790572,0.31047,67532.0,67531.0,0.46353059]
[1718262790859,0.31047,67532.0,67531.0,0.4247421]
[1718262791083,0.31047,67532.0,67531.0,0.4245421]
[1718262791290,0.31047,67532.0,67531.0,0.34656993]
[1718262791463,0.32095399,67532.0,67531.0,0.46160975]
[1718262792232,0.32095399,67532.0,67531.0,0.55002939]
[1718262792640,0.32095399,67532.0,67531.0,0.57302939]
[1718262792865,0.31047,67532.0,67531.0,0.57302939]
[1718262793430,0.32095399,67532.0,67531.0,0.48460975]
[1718262793629,0.32095399,67532.0,67531.0,0.57302939]
[1718262793830,0.32095399,67532.0,67531.0,0.67668539]
[1718262794087,0.31047,67532.0,67531.0,0.58826575]
[1718262794794,0.31047,67532.0,67531.0,0.67668058]
[1718262794926,0.31047,67532.0,67531.0,0.58826575]
[1718262795741,0.31047,67532.0,67531.0,0.55861575]
[1718262795950,0.31047,67532.0,67531.0,0.55841575]
[1718262796312,0.31047,67532.0,67531.0,0.55861575]
[1718262796513,0.31047,67532.0,67531.0,0.64703597]
[1718262797478,0.31047,67532.0,67531.0,0.64798197]
[1718262797873,0.31047,67532.0,67531.0,0.52077615]
[1718262799507,0.31047,67532.0,67531.0,0.64798139]
[1718262801432,0.31047,67532.0,67531.0,0.55956117]
[1718262801778,0.31047,67532.0,67531.0,0.52077615]
[1718262801948,0.31047,67532.0,67531.0,0.6660689]
[1718262802327,0.31047,67532.0,67531.0,0.66606973]
[1718262802527,0.31047,67532.0,67531.0,0.5388637]
[1718262802948,0.31047,67532.0,67531.0,0.66607101]
[1718262804158,0.31047,67532.0,67531.0,0.57764996]
[1718262804980,0.31047,67532.0,67531.0,0.68817451]
[1718262805659,0.31047,67532.0,67531.0,0.57764996]
[1718262806080,0.31047,67532.0,67531.0,0.68817791]
[1718262806929,0.31047,67532.0,67531.0,0.57764996]
[1718262807175,0.31047,67532.0,67531.0,0.50139574]
[1718262807389,0.31047,67532.0,67531.0,0.58034447]
[1718262807580,0.18017,67532.0,67531.0,0.58034447]
[1718262808437,0.18017,67532.0,67531.0,0.58030247]
[1718262809364,0.18017,67532.0,67531.0,0.6908297]
[1718262809564,0.18017,67532.0,67531.0,0.58030247]
[1718262809775,0.18017,67532.0,67531.0,0.6908297]
[1718262809984,0.18017,67532.0,67531.0,0.58030247]
[1718262810193,0.18017,67532.0,67531.0,0.58010247]
[1718262810439,0.18017,67532.0,67531.0,0.58030247]
[1718262811081,0.18017,67532.0,67531.0,0.69083885]
[1718262811555,0.18017,67532.0,67531.0,0.69083005]
[1718262811756,0.18017,67532.0,67531.0,0.58030247]
[1718262811986,0.00857,67532.0,67531.0,0.60996247]
[1718262812514,0.00857,67532.0,67531.0,0.81727447]
[1718262812723,0.00857,67533.0,67532.0,0.289314]
[1718262812960,0.00857,67533.0,67532.0,0.85322692]
[1718262813170,0.00857,67533.0,67532.0,0.86802692]
[1718262813932,0.00857,67533.0,67532.0,0.88282692]
[1718262814136,0.00857,67533.0,67532.0,0.89682692]
[1718262814313,0.00857,67533.0,67532.0,1.04341128]
[1718262814744,0.00857,67533.0,67532.0,0.91082692]
[1718262814977,0.00857,67533.0,67532.0,0.80342692]
[1718262815224,0.00857,67533.0,67532.0,0.93601128]
[1718262815427,0.00857,67533.0,67532.0,0.80342692]
[1718262818059,0.00857,67533.0,67532.0,0.93601128]
[1718262818600,0.00857,67533.0,67532.0,0.80342692]
[1718262819593,1e-08,67533.0,67532.0,1.49242692]
[1718262819823,1e-08,67533.0,67532.0,1.36773592]
[1718262820476,1e-08,67533.0,67532.0,1.16042692]
[1718262820891,1e-08,67533.0,67532.0,1.36773592]
[1718262821401,1e-08,67533.0,67532.0,1.69973592]
[1718262821688,1e-08,67533.0,67532.0,1.34273592]
[1718262822102,1e-08,67533.0,67532.0,1.51153592]
[1718262822839,1e-08,67533.0,67532.0,1.64763592]
[1718262823219,0.00806448,67546.0,67545.0,0.303634]
[1718262823424,0.00806448,67546.0,67545.0,0.54245393]
[1718262823846,0.30196448,67546.0,67545.0,0.62065048]
[1718262824272,0.31202634,67546.0,67545.0,0.62065048]
[1718262824918,0.31202634,67546.0,67545.0,0.63465048]
[1718262825442,0.31202634,67546.0,67545.0,0.64865048]
[1718262825651,0.31202634,67546.0,67545.0,0.57715048]
[1718262825856,0.31202634,67546.0,67545.0,0.47351648]
[1718262826060,0.31202634,67546.0,67545.0,0.51769579]
[1718262826476,0.31202634,67546.0,67545.0,0.51769547]
[1718262826681,0.31202634,67546.0,67545.0,0.45951648]
[1718262826872,0.31202634,67546.0,67545.0,0.52578497]
[1718262827434,0.30196448,67546.0,67545.0,0.53978497]
[1718262827638,0.31203707,67546.0,67545.0,0.47351648]
[1718262828220,0.31203707,67546.0,67545.0,0.45951648]
[1718262828425,0.31203707,67546.0,67545.0,0.48969136]
[1718262828625,0.31203707,67546.0,67545.0,0.51769136]
[1718262830248,0.31203707,67546.0,67545.0,0.62132536]
[1718262830468,0.31203707,67546.0,67545.0,0.57715048]
[1718262830679,0.31203707,67546.0,67545.0,0.63635448]
[1718262831882,0.31203707,67546.0,67545.0,0.68052531]
[1718262832089,0.30196448,67546.0,67545.0,0.63635448]
[1718262832253,0.31203564,67546.0,67545.0,0.63635448]
[1718262832664,0.31203564,67546.0,67545.0,0.68052426]
[1718262834004,0.31203564,67546.0,67545.0,0.63635448]
[1718262834423,0.31203564,67546.0,67545.0,0.68052105]
[1718262837069,0.30196448,67546.0,67545.0,0.6023245]
[1718262837225,0.30196448,67546.0,67545.0,0.68052349]
[1718262837630,0.17226448,67546.0,67545.0,0.68052349]
[1718262838653,0.00806448,67546.0,67545.0,0.68052349]
[1718262838848,0.00806448,67546.0,67545.0,0.7192901]
[1718262839111,0.00806448,67546.0,67545.0,1.2493191]
[1718262839289,0.00806448,67546.0,67545.0,1.26723024]
[1718262839900,0.00806448,67546.0,67545.0,1.20906367]
[1718262840103,0.00806448,67546.0,67545.0,1.19506367]
[1718262840512,0.00806448,67546.0,67545.0,1.20906367]
[1718262841154,0.00806448,67546.0,67545.0,1.19506367]
[1718262841276,0.00806448,67546.0,67545.0,1.20906367]
[1718262841879,0.00806448,67546.0,67545.0,1.19506367]
[1718262842082,0.00806448,67546.0,67545.0,1.20906367]
[1718262843027,0.00806448,67546.0,67545.0,1.05409706]
[1718262844478,0.00806448,67546.0,67545.0,1.04009706]
[1718262845114,0.00806448,67546.0,67545.0,0.87719706]
[1718262845306,0.00806448,67546.0,67545.0,0.65592806]
[1718262846051,0.00806448,67546.0,67545.0,0.68392806]
[1718262846269,0.00806448,67546.0,67545.0,0.76181857]
[1718262846485,0.00806448,67546.0,67545.0,0.61649753]
[1718262846658,0.00806448,67546.0,67545.0,0.63049753]
[1718262846868,0.00806448,67546.0,67545.0,0.64449753]
[1718262847577,0.00806448,67546.0,67545.0,0.62658639]
[1718262848165,0.30956448,67546.0,67545.0,0.52295239]
[1718262848759,0.31964468,67546.0,67545.0,0.52295239]
[1718262849160,0.31964468,67546.0,67545.0,0.62658639]
[1718262849365,0.01814468,67546.0,67545.0,0.62658639]
[1718262849757,0.00806448,67546.0,67545.0,0.62658639]
[1718262850188,0.00806448,67546.0,67545.0,0.74745694]
[1718262850409,0.00806448,67546.0,67545.0,0.73345694]
[1718262850857,0.00806448,67546.0,67545.0,0.74745694]
[1718262851670,0.00806448,67546.0,67545.0,0.73345694]
[1718262852071,0.00806448,67546.0,67545.0,0.71945694]
[1718262852483,0.00806448,67546.0,67545.0,0.73345694]
[1718262853005,0.00806448,67546.0,67545.0,0.71945694]
[1718262853205,0.00806448,67546.0,67545.0,0.73345694]
[1718262853413,0.00806448,67546.0,67545.0,0.74745694]
[1718262853610,0.00806448,67546.0,67545.0,0.73345694]
[1718262853809,0.00806448,67546.0,67545.0,0.80495694]
[1718262853986,0.00806448,67546.0,67545.0,0.81895694]
[1718262854378,0.00806448,67546.0,67545.0,0.80495694]
[1718262855689,0.2447147,67553.0,67552.0,0.72966]
[1718262855913,0.25479831,67553.0,67552.0,1.03574839]
[1718262856542,0.2447147,67553.0,67552.0,1.03574839]
[1718262856954,0.2447147,67553.0,67552.0,1.04974839]
[1718262857160,0.2447147,67553.0,67552.0,1.06374839]
[1718262857600,0.2447147,67553.0,67552.0,0.49531993]
[1718262858023,0.25480115,67553.0,67552.0,0.49531993]
[1718262860162,0.37480115,67553.0,67552.0,0.49531993]
[1718262860364,0.25480115,67553.0,67552.0,0.49531993]
[1718262861576,0.25566115,67553.0,67552.0,0.49531993]
[1718262863691,0.25566115,67553.0,67552.0,0.47231993]
[1718262864367,0.25566115,67553.0,67552.0,0.55573401]
[1718262865700,0.37566115,67553.0,67552.0,0.55573401]
[1718262866179,0.37566115,67553.0,67552.0,0.57343309]
[1718262866526,0.37566115,67553.0,67552.0,0.55573401]
[1718262867333,0.37566115,67553.0,67552.0,0.54173401]
[1718262867538,0.37566115,67553.0,67552.0,0.52773401]
[1718262867740,0.37566115,67553.0,67552.0,0.54173401]
[1718262868165,0.37566115,67553.0,67552.0,0.52773401]
[1718262868509,0.37566115,67553.0,67552.0,0.54173401]
[1718262868717,0.25566115,67553.0,67552.0,0.55573401]
[1718262869140,0.25566115,67553.0,67552.0,0.54173401]
[1718262869382,0.37566115,67553.0,67552.0,0.54173401]
[1718262869596,0.37566115,67553.0,67552.0,0.55573401]
[1718262871042,0.37566115,67553.0,67552.0,0.59520364]
[1718262873446,0.3655747,67553.0,67552.0,0.59520364]
[1718262873864,0.37565174,67553.0,67552.0,0.59520364]
[1718262875282,0.37565174,67553.0,67552.0,0.63943218]
[1718262875479,0.25565174,67553.0,67552.0,0.63943218]
[1718262875713,0.37565174,67553.0,67552.0,0.63943218]
[1718262876972,0.37565174,67553.0,67552.0,0.59520364]
[1718262877715,0.37565174,67553.0,67552.0,0.49520364]
[1718262878617,0.37545174,67553.0,67552.0,0.49520364]
[1718262880242,0.37545174,67553.0,67552.0,0.49522837]
[1718262880447,0.37545174,67553.0,67552.0,0.29522837]
[1718262880584,0.44695174,67553.0,67552.0,0.29522837]
[1718262881201,0.44695174,67553.0,67552.0,0.28121907]
[1718262881602,0.44695174,67553.0,67552.0,0.29521907]
[1718262882136,0.37545174,67553.0,67552.0,0.29497472]
[1718262882491,0.14123704,67553.0,67552.0,0.28097472]
[1718262882685,0.30993704,67553.0,67552.0,0.29497472]
[1718262882831,0.42993704,67553.0,67552.0,0.29497472]
[1718262883037,0.42993704,67553.0,67552.0,0.29494512]
[1718262885225,0.30993704,67553.0,67552.0,0.29494512]
[1718262885513,0.42993704,67553.0,67552.0,0.29494512]
[1718262888319,0.30993704,67553.0,67552.0,0.29494512]
[1718262888531,0.42993704,67553.0,67552.0,0.29494512]
[1718262890071,0.30993704,67553.0,67552.0,0.29494512]
[1718262891010,0.30993704,67553.0,67552.0,0.29478836]
[1718262891762,0.30993704,67553.0,67552.0,0.29483511]
[1718262892571,0.01093704,67553.0,67552.0,0.29483511]
[1718262892972,0.13093704,67553.0,67552.0,0.29483511]
[1718262893609,0.13093704,67553.0,67552.0,0.29491522]
[1718262894043,0.557397,67553.0,67552.0,0.29491522]
[1718262894251,0.628897,67553.0,67552.0,0.29491522]
[1718262897029,0.55673704,67553.0,67552.0,0.29491522]
[1718262897901,0.36523704,67553.0,67552.0,0.29491522]
[1718262898100,0.48523704,67553.0,67552.0,0.29491522]
[1718262898815,0.36523704,67553.0,67552.0,0.29491522]
[1718262899235,0.46523704,67553.0,67552.0,0.29491522]
[1718262899610,0.36523704,67553.0,67552.0,0.29491522]
[1718262901243,0.48523704,67553.0,67552.0,0.29491522]
[1718262902126,0.48523704,67553.0,67552.0,0.29482586]
[1718262902974,0.55673704,67553.0,67552.0,0.29482586]
[1718262904668,0.56673704,67553.0,67552.0,0.29482586]
[1718262905322,0.56673704,67553.0,67552.0,0.44482586]
[1718262905323,0.0911476,67553.0,67552.0,0.44482586]
[1718262905557,0.0811476,67553.0,67552.0,0.44482586]
[1718262905772,0.0715,67553.0,67552.0,0.44482586]
[1718262905989,0.0815,67553.0,67552.0,0.44482586]
[1718262906408,0.0815,67553.0,67552.0,0.46782586]
[1718262906659,0.0715,67553.0,67552.0,0.3848055]
[1718262906871,0.0715,67553.0,67552.0,0.46976368]
[1718262907078,0.0715,67553.0,67552.0,0.56976368]
[1718262907671,0.0715,67553.0,67552.0,0.56981447]
[1718262908281,0.3779,67553.0,67552.0,0.56981447]
[1718262908484,0.38754694,67553.0,67552.0,0.57981447]
[1718262908691,0.25234694,67553.0,67552.0,0.56981447]
[1718262910059,0.25234694,67553.0,67552.0,0.46981447]
[1718262910308,0.2427,67553.0,67552.0,0.46981447]
[1718262910514,0.2427,67553.0,67552.0,0.56981447]
[1718262910720,0.25234694,67553.0,67552.0,0.46981447]
[1718262911562,0.24496694,67553.0,67552.0,0.46981447]
[1718262911768,0.24496694,67553.0,67552.0,0.56981447]
[1718262911973,0.37826694,67553.0,67552.0,0.56981447]
[1718262912185,0.37826694,67553.0,67552.0,0.46981447]
[1718262912422,0.37826694,67553.0,67552.0,0.56981447]
[1718262913213,0.36862,67553.0,67552.0,0.56981447]
[1718262913630,0.37826694,67553.0,67552.0,0.56981447]
[1718262915506,0.37826694,67553.0,67552.0,0.46981447]
[1718262917227,0.23522,67553.0,67552.0,0.46981447]
[1718262917640,0.24486694,67553.0,67552.0,0.46981447]
[1718262917848,0.24486694,67553.0,67552.0,0.47024989]
[1718262918101,0.24486694,67553.0,67552.0,0.57024989]
[1718262918538,0.18074694,67553.0,67552.0,0.57024989]
[1718262918758,0.18074694,67553.0,67552.0,1.00083342]
[1718262918759,0.00964694,67553.0,67552.0,1.00083342]
[1718262918967,0.00964694,67553.0,67552.0,1.01715339]
[1718262919182,0.01797125,67571.0,67566.0,0.2]
[1718262919183,0.3063,67567.0,67566.0,0.2]
[1718262919387,0.3063,67567.0,67566.0,0.36731993]
[1718262919607,0.00965062,67567.0,67566.0,0.46294047]
[1718262919817,0.00965062,67567.0,67566.0,0.55255645]
[1718262920078,0.1269,67572.0,67571.0,0.15]
[1718262920306,0.1269,67572.0,67571.0,0.29431993]
[1718262921548,0.1269,67572.0,67571.0,0.32231993]
[1718262922012,0.1269,67572.0,67571.0,0.34531993]
[1718262922698,0.1269,67572.0,67571.0,0.35531993]
[1718262922923,0.01,67583.0,67582.0,0.05]
[1718262923149,0.01,67583.0,67582.0,0.19431993]
[1718262923150,0.0715,67583.0,67582.0,0.19431993]
[1718262923370,0.3782,67583.0,67582.0,0.19431993]
[1718262924900,0.3882,67583.0,67582.0,0.20831993]
[1718262925332,0.41540289,67583.0,67582.0,0.20831993]
[1718262926579,0.41626289,67583.0,67582.0,0.22231993]
[1718262927652,0.41626289,67583.0,67582.0,0.20831993]
[1718262927998,0.41626289,67583.0,67582.0,0.22231993]
[1718262928833,0.39871062,67583.0,67582.0,0.028]
[1718262929896,0.39871062,67583.0,67582.0,0.014]
[1718262929897,0.41885323,67583.0,67582.0,0.014]
[1718262930096,0.34735323,67583.0,67582.0,0.014]
[1718262930315,0.41885323,67583.0,67582.0,0.028]
[1718262930726,0.41885323,67583.0,67582.0,0.014]
[1718262930929,0.41885323,67583.0,67582.0,0.028]
[1718262931775,0.34735323,67583.0,67582.0,0.028]
[1718262931980,0.41885323,67583.0,67582.0,0.028]
[1718262932189,0.41885323,67583.0,67582.0,0.22231993]
[1718262932877,0.34735323,67583.0,67582.0,0.17231993]
[1718262933120,0.41885323,67583.0,67582.0,0.17231993]
[1718262934173,0.41875323,67583.0,67582.0,0.17231993]
[1718262934385,0.41875323,67583.0,67582.0,0.028]
[1718262940397,0.34725323,67583.0,67582.0,0.028]
[1718262940615,0.41875323,67583.0,67582.0,0.028]
[1718262942246,0.41875323,67583.0,67582.0,0.17231993]
[1718262942457,0.39861062,67583.0,67582.0,0.17231993]
[1718262942669,0.01051062,67583.0,67582.0,0.22231993]
[1718262942882,0.08201062,67583.0,67582.0,0.22231993]
[1718262943572,0.01051062,67583.0,67582.0,0.32231993]
[1718262943787,0.08201062,67583.0,67582.0,0.22231993]
[1718262944427,0.08201062,67583.0,67582.0,0.20831993]
[1718262944819,0.09201062,67583.0,67582.0,0.20831993]
[1718262944953,0.08201062,67583.0,67582.0,0.19431993]
[1718262945154,0.08201062,67583.0,67582.0,0.20831993]
[1718262945372,0.08201062,67583.0,67582.0,0.22231993]
[1718262945629,0.08201062,67583.0,67582.0,0.20831993]
[1718262946043,0.09201062,67583.0,67582.0,0.22231993]
[1718262946671,0.08236,67583.0,67582.0,0.22231993]
[1718262949710,0.00086,67583.0,67582.0,0.32231993]
[1718262949916,0.08236,67583.0,67582.0,0.22231993]
[1718262950553,0.07236,67583.0,67582.0,0.22231993]
[1718262951015,0.42636,67583.0,67582.0,0.17231993]
[1718262951426,0.43602895,67583.0,67582.0,0.17231993]
[1718262951643,0.28592895,67583.0,67582.0,0.22231993]
[1718262951877,0.09202895,67583.0,67582.0,0.22231993]
[1718262952107,0.08202895,67583.0,67582.0,0.22231993]
[1718262952334,0.09202895,67583.0,67582.0,0.22231993]
[1718262954095,0.02052895,67583.0,67582.0,0.22231993]
[1718262954302,0.09202895,67583.0,67582.0,0.22231993]
[1718262958284,0.02052895,67583.0,67582.0,0.22231993]
[1718262958479,0.09202895,67583.0,67582.0,0.22231993]
[1718262960104,0.09202895,67583.0,67582.0,0.22326593]
[1718262960342,0.09202895,67583.0,67582.0,0.32326593]
[1718262960756,0.09202895,67583.0,67582.0,0.22326593]
[1718262961789,0.02052895,67583.0,67582.0,0.22326593]
[1718262961997,0.09202895,67583.0,67582.0,0.54046593]
[1718262962249,0.08236,67583.0,67582.0,0.54046593]
[1718262962498,0.07236,67583.0,67582.0,0.54046593]
[1718262962705,0.00086,67583.0,67582.0,0.64046593]
[1718262962929,0.07236,67583.0,67582.0,0.64046593]
[1718262963149,0.07236,67583.0,67582.0,0.54046593]
[1718262964431,0.08236,67583.0,67582.0,0.54046593]
[1718262965068,0.07236,67583.0,67582.0,0.22326593]
[1718262965272,0.08236,67583.0,67582.0,0.22326593]
[1718262965422,0.09203039,67583.0,67582.0,0.22326593]
[1718262966200,0.01053039,67583.0,67582.0,0.22326593]
[1718262966431,0.07236,67583.0,67582.0,0.22326593]
[1718262966948,0.08203039,67583.0,67582.0,0.32326593]
[1718262967156,0.08203039,67583.0,67582.0,0.22326593]
[1718262967579,0.08203039,67583.0,67582.0,0.32326593]
[1718262968967,0.01053039,67583.0,67582.0,0.32326593]
[1718262969396,0.00086,67583.0,67582.0,0.34626593]
[1718262969617,0.00086,67583.0,67582.0,0.40626593]
[1718262969870,0.00086,67583.0,67582.0,0.72716593]
[1718262970317,0.00086,67583.0,67582.0,0.71716593]
[1718262972045,0.00086,67583.0,67582.0,0.72716593]
[1718262972441,0.00086,67583.0,67582.0,0.71716593]
[1718262972654,0.00086,67583.0,67582.0,0.72716593]
[1718262972853,0.00086,67583.0,67582.0,0.71716593]
[1718262973123,0.00086,67583.0,67582.0,0.74943662]
[1718262974063,0.00086,67583.0,67582.0,0.75943662]
[1718262974498,0.00086,67583.0,67582.0,0.77343662]
[1718262975057,0.00086,67583.0,67582.0,0.75943662]
[1718262975509,0.00086,67583.0,67582.0,0.77343662]
[1718262976117,0.00086,67583.0,67582.0,0.71978593]
[1718262976290,0.00086,67583.0,67582.0,0.69178593]
[1718262976692,0.00086,67583.0,67582.0,0.70578593]
[1718262977098,0.00086,67583.0,67582.0,0.69178593]
[1718262977505,0.00086,67583.0,67582.0,0.70578593]
[1718262977952,0.00086,67583.0,67582.0,0.71978593]
[1718262978318,0.00086,67583.0,67582.0,0.70578593]
[1718262978689,0.00086,67583.0,67582.0,0.71978593]
[1718262978909,0.00086,67583.0,67582.0,0.38888593]
[1718262979504,0.01054024,67583.0,67582.0,0.39888593]
[1718262980293,0.01054024,67583.0,67582.0,0.70478593]
[1718262980497,0.00086,67583.0,67582.0,0.70478593]
[1718262981773,0.00086,67583.0,67582.0,0.81136991]
[1718262981968,0.00086,67583.0,67582.0,0.70478593]
[1718262982680,0.00086,67583.0,67582.0,0.71358593]
[1718262982823,0.00086,67583.0,67582.0,0.78574589]
[1718262986743,0.00086,67583.0,67582.0,0.79574589]
[1718262986960,0.00086,67583.0,67582.0,0.89961241]
[1718262987376,0.00086,67583.0,67582.0,0.97111241]
[1718262988168,0.00086,67583.0,67582.0,0.95711241]
[1718262988837,0.00086,67583.0,67582.0,0.94711241]
[1718262989033,0.00086,67583.0,67582.0,0.88961241]
[1718262989250,0.00086,67583.0,67582.0,0.88802256]
[1718262990209,0.00086,67583.0,67582.0,0.8740548]
[1718262990703,0.00086,67583.0,67582.0,0.8840548]
[1718262990913,0.00086,67583.0,67582.0,0.9976318]
[1718262991111,0.00086,67583.0,67582.0,1.0976318]
[1718262991356,0.00086,67583.0,67582.0,1.1412918]
[1718262991583,0.00086,67583.0,67582.0,1.2970918]
[1718262991771,0.00086,67583.0,67582.0,1.3470918]
[1718262991893,0.00086,67583.0,67582.0,1.3335344]
[1718262992294,0.00086,67583.0,67582.0,1.46607022]
[1718262992585,0.00086,67583.0,67582.0,1.48007022]
[1718262992794,0.00086,67583.0,67582.0,1.32649322]
[1718262993026,0.00086,67583.0,67582.0,1.0281574]
[1718262993229,0.00086,67583.0,67582.0,1.0996574]
[1718262993454,0.00086,67583.0,67582.0,1.01919894]
[1718262993656,0.00086,67583.0,67582.0,0.95253894]
[1718262993906,0.00086,67583.0,67582.0,0.97543187]
[1718262994112,0.00086,67583.0,67582.0,0.98943187]
[1718262994536,0.00086,67583.0,67582.0,0.96143187]
[1718262994761,0.00086,67583.0,67582.0,0.97543187]
[1718262994979,0.00086,67583.0,67582.0,1.04799689]
[1718262995193,0.00086,67583.0,67582.0,1.05699689]
[1718262995411,0.00086,67583.0,67582.0,1.04299689]
[1718262995614,0.00086,67583.0,67582.0,1.05699689]
[1718262996248,0.00086,67583.0,67582.0,1.07099689]
[1718262996938,0.00086,67583.0,67582.0,0.49393882]
[1718262997150,0.00086,67583.0,67582.0,0.64638866]
[1718262997359,0.00086,67583.0,67582.0,0.64238866]
[1718262997766,0.00086,67583.0,67582.0,0.65638866]
[1718262998214,0.00086,67583.0,67582.0,0.61838866]
[1718262998429,0.00086,67583.0,67582.0,0.5462287]
[1718262998657,0.07236,67583.0,67582.0,0.52833577]
[1718262998882,0.08210956,67583.0,67582.0,0.52833577]
[1718262999093,0.08210956,67583.0,67582.0,0.51433577]
[1718262999305,0.08210956,67583.0,67582.0,0.35188593]
[1718262999943,0.08210956,67583.0,67582.0,0.33788593]
[1718263000187,0.08210956,67583.0,67582.0,0.35188593]
[1718263000447,0.08210956,67583.0,67582.0,0.37488593]
[1718263000673,0.27630956,67583.0,67582.0,0.27488593]
[1718263001312,0.41560956,67583.0,67582.0,0.28888593]
[1718263001528,0.40586,67583.0,67582.0,0.28888593]
[1718263001733,0.41558954,67583.0,67582.0,0.26588593]
[1718263001949,0.41558954,67583.0,67582.0,0.23788593]
[1718263002160,0.41558954,67583.0,67582.0,0.25188593]
[1718263002375,0.41558954,67583.0,67582.0,0.26588593]
[1718263002965,0.41558954,67583.0,67582.0,0.25188593]
[1718263003410,0.41558954,67583.0,67582.0,0.26588593]
[1718263003841,0.41558954,67583.0,67582.0,0.25188593]
[1718263004303,0.41558954,67583.0,67582.0,0.15188593]
[1718263004493,0.45714849,67583.0,67582.0,0.13788593]
[1718263004926,0.41558954,67583.0,67582.0,0.15188593]
[1718263005582,0.41558954,67583.0,67582.0,0.13788593]
[1718263005792,0.41558954,67583.0,67582.0,0.15188593]
[1718263006002,0.41558954,67583.0,67582.0,0.16588593]
[1718263006245,0.41558954,67583.0,67582.0,0.13788593]
[1718263006669,0.41558954,67583.0,67582.0,0.16588593]
[1718263007985,0.34408954,67583.0,67582.0,0.20188593]
[1718263008222,0.33408954,67583.0,67582.0,0.21588593]
[1718263008649,0.41558954,67583.0,67582.0,0.20188593]
[1718263008854,0.41558954,67583.0,67582.0,0.18788593]
[1718263009104,0.41558954,67583.0,67582.0,0.21588593]
[1718263009308,0.41558954,67583.0,67582.0,0.20188593]
[1718263009735,0.40586,67583.0,67582.0,0.20188593]
[1718263010087,0.41554475,67583.0,67582.0,0.20188593]
[1718263011084,0.41554475,67583.0,67582.0,0.21588593]
[1718263012892,0.41554475,67583.0,67582.0,0.16588593]
[1718263015313,0.26757875,67583.0,67582.0,0.16588593]
[1718263022087,0.26757875,67583.0,67582.0,0.21588593]
[1718263022088,0.08118475,67583.0,67582.0,0.21588593]
[1718263022281,0.08118475,67583.0,67582.0,0.31588593]
[1718263022628,0.01,67587.0,67582.0,0.23888593]
[1718263022830,0.01,67587.0,67586.0,0.05]
[1718263023050,0.0715,67587.0,67586.0,0.24431993]
[1718263023757,0.0815,67587.0,67586.0,0.24431993]
[1718263024832,0.0815,67587.0,67586.0,0.27231993]
[1718263025791,0.08236,67587.0,67586.0,0.27231993]
[1718263026557,0.07236,67587.0,67586.0,0.27231993]
[1718263026980,0.00086,67587.0,67586.0,0.27231993]
[1718263027179,0.07236,67587.0,67586.0,0.27231993]
[1718263028824,0.00086,67587.0,67586.0,0.37231993]
[1718263029029,0.00086,67587.0,67586.0,0.72301993]
[1718263030137,0.00086,67587.0,67586.0,0.71901993]
[1718263030378,0.00086,67587.0,67586.0,0.70901993]
[1718263030379,0.07236,67587.0,67586.0,0.70901993]
[1718263030984,0.07236,67587.0,67586.0,0.72301993]
[1718263031181,0.07236,67587.0,67586.0,0.70901993]
[1718263031385,0.07236,67587.0,67586.0,0.69501993]
[1718263031811,0.07236,67587.0,67586.0,0.70901993]
[1718263031989,0.07236,67587.0,67586.0,0.72301993]
[1718263032189,0.07236,67587.0,67586.0,0.29531993]
[1718263032592,0.092079,67587.0,67586.0,0.27231993]
[1718263032814,0.267779,67587.0,67586.0,0.27231993]
[1718263032971,0.412079,67587.0,67586.0,0.27231993]
[1718263033174,0.092079,67587.0,67586.0,0.17231993]
[1718263033380,0.398579,67587.0,67586.0,0.14431993]
[1718263033783,0.398579,67587.0,67586.0,0.17231993]
[1718263034102,0.398579,67587.0,67586.0,0.14431993]
[1718263034509,0.398579,67587.0,67586.0,0.17231993]
[1718263034727,0.398579,67587.0,67586.0,0.15831993]
[1718263036438,0.398579,67587.0,67586.0,0.17031993]
[1718263037055,0.38886,67587.0,67586.0,0.17031993]
[1718263037267,0.38886,67587.0,67586.0,0.026]
[1718263037468,0.39858721,67587.0,67586.0,0.026]
[1718263041133,0.32708721,67587.0,67586.0,0.026]
[1718263041340,0.39858721,67587.0,67586.0,0.026]
[1718263041980,0.29858721,67587.0,67586.0,0.026]
[1718263042381,0.34285942,67587.0,67586.0,0.026]
[1718263043247,0.29858721,67587.0,67586.0,0.026]
[1718263043908,0.34287111,67587.0,67586.0,0.026]
[1718263044684,0.60205014,67587.0,67586.0,0.026]
[1718263044894,1.39336099,67587.0,67586.0,0.026]
[1718263045100,1.3252875,67587.0,67586.0,0.026]
[1718263045321,1.3252875,67587.0,67582.0,0.000946]
[1718263045322,1.1079275,67587.0,67582.0,0.000946]
[1718263045535,0.50824718,67583.0,67582.0,0.000946]
[1718263045752,1.35867653,67583.0,67582.0,0.000946]
[1718263045954,1.36836925,67583.0,67582.0,0.000946]
[1718263046608,1.51338667,67583.0,67582.0,0.000946]
[1718263047849,1.48094246,67583.0,67582.0,0.010946]
[1718263048024,1.51436843,67583.0,67582.0,0.010946]
[1718263048478,1.51536843,67583.0,67582.0,0.024946]
[1718263049124,1.67116843,67583.0,67582.0,0.024946]
[1718263049336,0.1558,67581.0,67568.0,0.05]
[1718263049576,0.3132,67574.0,67569.0,0.14431993]
[1718263049783,0.0715,67570.0,67569.0,0.14431993]
[1718263050203,0.08118577,67570.0,67569.0,0.14431993]
[1718263051647,0.08218577,67570.0,67569.0,0.14931993]
[1718263052441,0.08318577,67570.0,67569.0,0.15331993]
[1718263055526,0.01168577,67570.0,67569.0,0.15331993]
[1718263055728,0.08318577,67570.0,67569.0,0.15331993]
[1718263055937,0.0735,67570.0,67569.0,0.15331993]
[1718263056681,0.08317403,67570.0,67569.0,0.15331993]
[1718263057832,0.08317403,67570.0,67569.0,0.15426593]
[1718263064199,0.0735,67570.0,67569.0,0.15426593]
[1718263064694,0.08317289,67570.0,67569.0,0.15426593]
[1718263072956,0.10283997,67570.0,67569.0,0.15426593]
[1718263074130,0.24283997,67570.0,67569.0,0.15426593]
[1718263081278,0.22317289,67570.0,67569.0,0.15426593]
[1718263081717,0.08317289,67570.0,67569.0,0.15426593]
[1718263084850,0.10062378,67570.0,67569.0,0.15426593]
[1718263087246,0.10062378,67570.0,67569.0,0.009946]
[1718263087451,0.27612378,67570.0,67569.0,0.009946]
[1718263087914,0.66552375,67570.0,67569.0,0.009946]
[1718263088119,0.99336512,67570.0,67569.0,0.009946]
[1718263088490,1.08206885,67570.0,67569.0,0.009946]
[1718263088918,1.08206885,67570.0,67569.0,0.005946]
[1718263088919,0.99236512,67570.0,67569.0,0.005946]
[1718263089278,0.99336512,67570.0,67569.0,0.010946]
[1718263089486,1.08106885,67570.0,67569.0,0.005946]
[1718263089702,1.08106885,67570.0,67569.0,0.000946]